[Event "*** Titled Tuesday 3|2 Blitz"]
[Site "Chess.com"]
[Date "2015.12.01"]
[Round "2"]
[White "Konavets"]
[Black "bugsbunny444"]
[Result "1/2-1/2"]
[WhiteElo "2522"]
[BlackElo "2359"]
[TimeControl "180+2"]
[EndTime "17:19:47 PST"]
[Termination "Game drawn by agreement"]

1. d4 {[%clk 0:03:01.9]} 1... e6 {[%clk 0:03:01]} 2. c4 {[%clk 0:03:02.6]} 2...
b6 {[%clk 0:03:02.4]} 3. Nc3 {[%clk 0:03:03.4]} 3... Bb7 {[%clk 0:03:03.4]} 4.
a3 {[%clk 0:03:04.6]} 4... f5 {[%clk 0:03:04.1]} 5. Nf3 {[%clk 0:03:04.5]} 5...
Nf6 {[%clk 0:03:05.4]} 6. Bg5 {[%clk 0:03:06]} 6... Be7 {[%clk 0:03:03.3]} 7. e3
{[%clk 0:03:07.4]} 7... O-O {[%clk 0:03:02.5]} 8. Bd3 {[%clk 0:03:08.7]} 8...
Ne4 {[%clk 0:02:37.7]} 9. Bxe7 {[%clk 0:03:09.5]} 9... Nxc3 {[%clk 0:02:38.5]}
10. Bxd8 {[%clk 0:03:05.8]} 10... Nxd1 {[%clk 0:02:39.4]} 11. Bxc7 {[%clk
0:03:02.4]} 11... Nxb2 {[%clk 0:02:39.2]} 12. Be2 {[%clk 0:03:03.6]} 12... Rc8
{[%clk 0:02:34.6]} 13. Bd6 {[%clk 0:01:33.9]} 13... Nxc4 {[%clk 0:02:19.9]} 14.
Bxc4 {[%clk 0:01:34.6]} 14... Rxc4 {[%clk 0:02:07.5]} 15. Ne5 {[%clk 0:01:35.5]}
15... Rc2 {[%clk 0:01:50.8]} 16. O-O {[%clk 0:01:36.3]} 16... Nc6 {[%clk
0:01:42.5]} 17. Rfc1 {[%clk 0:01:37.1]} 17... Rxc1+ {[%clk 0:01:29.8]} 18. Rxc1
{[%clk 0:01:39]} 18... Nxe5 {[%clk 0:01:23.9]} 19. dxe5 {[%clk 0:01:40.4]} 19...
Rc8 {[%clk 0:01:23.4]} 20. Rxc8+ {[%clk 0:01:40.7]} 20... Bxc8 {[%clk
0:01:24.1]} 21. Bb8 {[%clk 0:01:42.6]} 21... a6 {[%clk 0:01:24.4]} 22. Bc7
{[%clk 0:01:39.2]} 22... b5 {[%clk 0:01:25]} 23. f3 {[%clk 0:01:36.9]} 23... Kf7
{[%clk 0:01:21.1]} 24. h4 {[%clk 0:01:35.2]} 24... Bb7 {[%clk 0:01:20.7]} 25.
Kf2 {[%clk 0:01:35.7]} 25... Kg6 {[%clk 0:01:18.9]} 26. g4 {[%clk 0:01:33.4]}
26... fxg4 {[%clk 0:01:16.4]} 27. fxg4 {[%clk 0:01:35.3]} 27... h5 {[%clk
0:01:15]} 28. Kg3 {[%clk 0:01:35.9]} 28... Bd5 {[%clk 0:01:05.6]} 29. Bd8 {[%clk
0:01:30.7]} 29... Bb3 {[%clk 0:00:57.2]} 30. Kf4 {[%clk 0:01:29.5]} 30... Bd1
{[%clk 0:00:49.6]} 31. g5 {[%clk 0:01:29.7]} 31... Bc2 {[%clk 0:00:45.3]} 32. e4
{[%clk 0:01:30]} 32... Kf7 {[%clk 0:00:42.1]} 33. Ke3 {[%clk 0:01:29.1]} 33...
g6 {[%clk 0:00:40.3]} 34. Bc7 {[%clk 0:01:29.7]} 34... Ke7 {[%clk 0:00:36.7]}
35. Kd4 {[%clk 0:01:30.8]} 35... Bb1 {[%clk 0:00:34.7]} 1/2-1/2

[Event "*** Titled Tuesday 3|2 Blitz"]
[Site "Chess.com"]
[Date "2015.12.01"]
[Round "2"]
[White "Yaacovn"]
[Black "kungmongmanh"]
[Result "1-0"]
[WhiteElo "2630"]
[BlackElo "2385"]
[TimeControl "180+2"]
[EndTime "17:19:56 PST"]
[Termination "Yaacovn won by resignation"]

1. d4 {[%clk 0:03:01]} 1... d5 {[%clk 0:02:59.9]} 2. Nf3 {[%clk 0:03:00.9]} 2...
c6 {[%clk 0:03:00.8]} 3. c4 {[%clk 0:03:01.6]} 3... Bf5 {[%clk 0:03:01.1]} 4.
cxd5 {[%clk 0:03:02.2]} 4... cxd5 {[%clk 0:03:02]} 5. Qb3 {[%clk 0:03:01.7]}
5... Qb6 {[%clk 0:02:47]} 6. Qxd5 {[%clk 0:03:00.7]} 6... e6 {[%clk 0:02:48.1]}
7. Qb3 {[%clk 0:03:00.9]} 7... Nc6 {[%clk 0:02:42]} 8. e3 {[%clk 0:02:57.9]}
8... Nb4 {[%clk 0:01:48.8]} 9. Na3 {[%clk 0:02:47.5]} 9... Rc8 {[%clk 0:01:12]}
10. Bb5+ {[%clk 0:02:43.9]} 10... Kd8 {[%clk 0:01:10.8]} 11. O-O {[%clk
0:02:41.2]} 11... Nc2 {[%clk 0:00:46.5]} 12. Bd2 {[%clk 0:02:03.4]} 12... a6
{[%clk 0:00:15.3]} 13. Rac1 {[%clk 0:01:34.3]} 13... Nxa3 {[%clk 0:00:10.5]} 14.
Rxc8+ {[%clk 0:01:34.1]} 14... Kxc8 {[%clk 0:00:11.3]} 15. Bd7+ {[%clk
0:01:32.5]} 15... Kc7 {[%clk 0:00:10.3]} 16. Rc1+ {[%clk 0:01:30.5]} 16... Nc2
{[%clk 0:00:11.2]} 17. Qa4 {[%clk 0:01:13.7]} 17... Nf6 {[%clk 0:00:10.2]} 18.
Ba5 {[%clk 0:01:10.6]} 18... Nxd7 {[%clk 0:00:09.6]} 19. Bxb6+ {[%clk
0:01:10.4]} 19... Nxb6 {[%clk 0:00:11.3]} 20. Rxc2+ {[%clk 0:01:11.5]} 20...
Bxc2 {[%clk 0:00:12.4]} 21. Qxc2+ {[%clk 0:01:12.4]} 21... Kb8 {[%clk
0:00:11.6]} 22. Qb3 {[%clk 0:01:12.4]} 22... Nd5 {[%clk 0:00:10.4]} 23. Ne5
{[%clk 0:01:12.4]} 23... f6 {[%clk 0:00:07.6]} 24. Nf7 {[%clk 0:01:08.8]} 24...
Rg8 {[%clk 0:00:08.3]} 25. Nd8 {[%clk 0:01:09.6]} 25... b5 {[%clk 0:00:06.6]}
26. Nxe6 {[%clk 0:01:09.7]} 26... Nb6 {[%clk 0:00:07.5]} 27. a4 {[%clk
0:01:04.7]} 27... Nxa4 {[%clk 0:00:07.8]} 28. Nc5 {[%clk 0:01:05.5]} 1-0

[Event "*** Titled Tuesday 3|2 Blitz"]
[Site "Chess.com"]
[Date "2015.12.01"]
[Round "2"]
[White "Colombiano07"]
[Black "ethylalcohol"]
[Result "1-0"]
[WhiteElo "2107"]
[BlackElo "1828"]
[TimeControl "180+2"]
[EndTime "17:19:57 PST"]
[Termination "Colombiano07 won on time"]

1. d4 {[%clk 0:03:01.9]} 1... d5 {[%clk 0:02:59.5]} 2. Nf3 {[%clk 0:02:55.2]}
2... Nf6 {[%clk 0:02:59.4]} 3. g3 {[%clk 0:02:57.1]} 3... b6 {[%clk 0:02:59.1]}
4. Bg2 {[%clk 0:02:59]} 4... Bb7 {[%clk 0:02:59.2]} 5. O-O {[%clk 0:03:00.9]}
5... e6 {[%clk 0:02:59.6]} 6. c4 {[%clk 0:03:02.8]} 6... Be7 {[%clk 0:02:58.4]}
7. Qa4+ {[%clk 0:03:02]} 7... c6 {[%clk 0:02:44.4]} 8. cxd5 {[%clk 0:02:59]}
8... exd5 {[%clk 0:02:43.4]} 9. Ne5 {[%clk 0:03:00.6]} 9... O-O {[%clk
0:02:43.1]} 10. Nc3 {[%clk 0:03:00.4]} 10... Nfd7 {[%clk 0:02:23.4]} 11. f4
{[%clk 0:02:45.8]} 11... Bf6 {[%clk 0:02:21]} 12. Be3 {[%clk 0:02:22.2]} 12...
Qe7 {[%clk 0:02:12.4]} 13. Qb3 {[%clk 0:02:19.7]} 13... g6 {[%clk 0:01:56.5]}
14. a4 {[%clk 0:02:11.7]} 14... Bg7 {[%clk 0:01:48]} 15. a5 {[%clk 0:02:11]}
15... f6 {[%clk 0:01:43.5]} 16. Nxd7 {[%clk 0:02:03.9]} 16... Qxe3+ {[%clk
0:01:41.1]} 17. Kh1 {[%clk 0:02:04.8]} 17... Nxd7 {[%clk 0:01:41.2]} 18. a6
{[%clk 0:02:05]} 18... Bc8 {[%clk 0:01:38.3]} 19. Bxd5+ {[%clk 0:01:59.5]} 19...
cxd5 {[%clk 0:01:26.4]} 20. Qxd5+ {[%clk 0:01:59.2]} 20... Kh8 {[%clk
0:01:23.2]} 21. Qxa8 {[%clk 0:01:59.7]} 21... Bxa6 {[%clk 0:01:02.5]} 22. Qxa7
{[%clk 0:01:59.2]} 22... Bc8 {[%clk 0:01:01.7]} 23. Qc7 {[%clk 0:01:49.9]} 23...
Qxd4 {[%clk 0:00:38.7]} 24. Rad1 {[%clk 0:01:43.8]} 24... Qc5 {[%clk 0:00:16.7]}
25. Rxd7 {[%clk 0:01:43.3]} 25... Bxd7 {[%clk 0:00:15.1]} 26. Qxd7 {[%clk
0:01:45.2]} 26... h5 {[%clk 0:00:10.5]} 27. Qd5 {[%clk 0:01:43.9]} 27... Qb4
{[%clk 0:00:08.9]} 28. Qe4 {[%clk 0:01:26.8]} 28... Qxb2 {[%clk 0:00:06.8]} 29.
Nd5 {[%clk 0:01:28.3]} 29... Qb5 {[%clk 0:00:04.4]} 30. Ne7 {[%clk 0:01:25.2]}
30... Qe8 {[%clk 0:00:03.2]} 31. Nxg6+ {[%clk 0:01:21.9]} 1-0

[Event "*** Titled Tuesday 3|2 Blitz"]
[Site "Chess.com"]
[Date "2015.12.01"]
[Round "2"]
[White "MisaPap"]
[Black "oskariot"]
[Result "1-0"]
[WhiteElo "2390"]
[BlackElo "2248"]
[TimeControl "180+2"]
[EndTime "17:20:34 PST"]
[Termination "MisaPap won by checkmate"]

1. e4 {[%clk 0:03:01.9]} 1... c5 {[%clk 0:03:00.8]} 2. Nf3 {[%clk 0:03:01.9]}
2... d6 {[%clk 0:03:02.2]} 3. d4 {[%clk 0:03:02.3]} 3... cxd4 {[%clk 0:03:04.1]}
4. Nxd4 {[%clk 0:03:03.2]} 4... Nf6 {[%clk 0:03:05.7]} 5. Nc3 {[%clk 0:03:04.2]}
5... Nc6 {[%clk 0:03:07.4]} 6. Bg5 {[%clk 0:03:04]} 6... Bd7 {[%clk 0:03:09]} 7.
Bxf6 {[%clk 0:03:03.7]} 7... gxf6 {[%clk 0:03:09.8]} 8. Be2 {[%clk 0:03:04.4]}
8... Nxd4 {[%clk 0:03:05.9]} 9. Qxd4 {[%clk 0:03:04.5]} 9... Qa5 {[%clk
0:03:07]} 10. O-O-O {[%clk 0:03:04.6]} 10... Rc8 {[%clk 0:03:05.2]} 11. Kb1
{[%clk 0:03:04.2]} 11... Bg7 {[%clk 0:02:49.8]} 12. Nd5 {[%clk 0:03:02]} 12...
Qc5 {[%clk 0:02:44.6]} 13. Qd3 {[%clk 0:02:47.3]} 13... Qxf2 {[%clk 0:02:26.4]}
14. Rhf1 {[%clk 0:02:46.9]} 14... Qc5 {[%clk 0:02:24.8]} 15. g4 {[%clk 0:02:38]}
15... Be6 {[%clk 0:02:01.1]} 16. h4 {[%clk 0:02:30.1]} 16... Bh6 {[%clk
0:01:48.6]} 17. Qb3 {[%clk 0:02:11.3]} 17... b6 {[%clk 0:01:03.5]} 18. Ba6
{[%clk 0:02:01.1]} 18... Rd8 {[%clk 0:00:56.1]} 19. Rd3 {[%clk 0:01:45.4]} 19...
Kf8 {[%clk 0:00:52.4]} 20. Rc3 {[%clk 0:01:40.9]} 20... Qd4 {[%clk 0:00:52.6]}
21. Bd3 {[%clk 0:01:04]} 21... Bxg4 {[%clk 0:00:34.3]} 22. Rc7 {[%clk
0:01:00.4]} 22... Be6 {[%clk 0:00:35.5]} 23. Rxa7 {[%clk 0:00:57.5]} 23... Bxd5
{[%clk 0:00:31]} 24. exd5 {[%clk 0:00:57.8]} 24... Rg8 {[%clk 0:00:32]} 25. a3
{[%clk 0:00:53.2]} 25... Rg1 {[%clk 0:00:30]} 26. Rxg1 {[%clk 0:00:52]} 26...
Qxg1+ {[%clk 0:00:31]} 27. Ka2 {[%clk 0:00:53.9]} 27... Be3 {[%clk 0:00:23.3]}
28. Qc4 {[%clk 0:00:46.2]} 28... Bc5 {[%clk 0:00:19.8]} 29. Rb7 {[%clk
0:00:40.7]} 29... Qf2 {[%clk 0:00:17.3]} 30. Qe4 {[%clk 0:00:39.6]} 30... Qd4
{[%clk 0:00:11]} 31. Qxe7+ {[%clk 0:00:39.6]} 31... Kg8 {[%clk 0:00:09.7]} 32.
Qxf7+ {[%clk 0:00:40.3]} 32... Kh8 {[%clk 0:00:10.3]} 33. Qg7# {[%clk
0:00:40.5]} 1-0

[Event "*** Titled Tuesday 3|2 Blitz"]
[Site "Chess.com"]
[Date "2015.12.01"]
[Round "2"]
[White "gauranga"]
[Black "AnimationDomination"]
[Result "1-0"]
[WhiteElo "2037"]
[BlackElo "1718"]
[TimeControl "180+2"]
[EndTime "17:20:41 PST"]
[Termination "gauranga won by resignation"]

1. b3 {[%clk 0:02:59.7]} 1... d5 {[%clk 0:02:06.1]} 2. Bb2 {[%clk 0:02:58.3]}
2... e6 {[%clk 0:02:06.1]} 3. Nf3 {[%clk 0:02:58.6]} 3... Nf6 {[%clk 0:02:07.2]}
4. g3 {[%clk 0:02:59.9]} 4... Be7 {[%clk 0:02:06.7]} 5. Bg2 {[%clk 0:03:01.2]}
5... Nbd7 {[%clk 0:02:06.5]} 6. O-O {[%clk 0:03:01.3]} 6... b6 {[%clk
0:02:07.3]} 7. d3 {[%clk 0:02:43.4]} 7... Bb7 {[%clk 0:02:08.4]} 8. Nbd2 {[%clk
0:02:44.9]} 8... c5 {[%clk 0:02:09.1]} 9. c4 {[%clk 0:02:46.3]} 9... Qc7 {[%clk
0:02:04.8]} 10. Qc2 {[%clk 0:02:46.2]} 10... O-O {[%clk 0:02:04.3]} 11. e4
{[%clk 0:02:46.6]} 11... d4 {[%clk 0:02:03.7]} 12. Rae1 {[%clk 0:02:41.6]} 12...
e5 {[%clk 0:02:03]} 13. Nh4 {[%clk 0:02:42.4]} 13... g6 {[%clk 0:02:01.7]} 14.
Qd1 {[%clk 0:02:42.3]} 14... Nh5 {[%clk 0:01:54.3]} 15. Nf5 {[%clk 0:02:40.8]}
15... Ndf6 {[%clk 0:01:46.6]} 16. Nxe7+ {[%clk 0:02:37.7]} 16... Qxe7 {[%clk
0:01:48.5]} 17. Bc1 {[%clk 0:02:29.9]} 17... Ng7 {[%clk 0:01:44.2]} 18. f4
{[%clk 0:02:30.2]} 18... Nd7 {[%clk 0:01:43.4]} 19. f5 {[%clk 0:02:28]} 19... f6
{[%clk 0:01:41.8]} 20. fxg6 {[%clk 0:02:24.3]} 20... hxg6 {[%clk 0:01:33.4]} 21.
Nf3 {[%clk 0:02:25.9]} 21... Rae8 {[%clk 0:01:33.7]} 22. Nh4 {[%clk 0:02:25.6]}
22... Qf7 {[%clk 0:01:26.1]} 23. Bh3 {[%clk 0:02:14.7]} 23... Bc8 {[%clk
0:01:21.1]} 24. Re2 {[%clk 0:02:03.6]} 24... Nb8 {[%clk 0:00:57]} 25. Bxc8
{[%clk 0:02:02.2]} 25... Rxc8 {[%clk 0:00:55.2]} 26. Ref2 {[%clk 0:02:03.7]}
26... Rc6 {[%clk 0:00:51.7]} 27. Qg4 {[%clk 0:02:01.3]} 27... Kh7 {[%clk
0:00:36.9]} 28. Qh3 {[%clk 0:02:02.2]} 28... Kg8 {[%clk 0:00:36.5]} 29. Bg5
{[%clk 0:01:51.7]} 29... Nd7 {[%clk 0:00:31.1]} 30. Bh6 {[%clk 0:01:45.4]} 30...
Qe8 {[%clk 0:00:29.4]} 31. Qg4 {[%clk 0:01:40.7]} 31... f5 {[%clk 0:00:27.8]}
32. exf5 {[%clk 0:01:35.3]} 32... Nf6 {[%clk 0:00:27.2]} 33. Qxg6 {[%clk
0:01:30.9]} 33... Qxg6 {[%clk 0:00:27.4]} 34. Nxg6 {[%clk 0:01:32.1]} 34... Re8
{[%clk 0:00:27.5]} 35. Bxg7 {[%clk 0:01:10.3]} 35... Kxg7 {[%clk 0:00:10]} 36.
h3 {[%clk 0:01:12.2]} 36... Rg8 {[%clk 0:00:09.9]} 37. g4 {[%clk 0:01:11.7]}
37... Kf7 {[%clk 0:00:10.7]} 38. Nxe5+ {[%clk 0:01:12.4]} 38... Ke7 {[%clk
0:00:11.5]} 39. Nxc6+ {[%clk 0:01:13.6]} 1-0

[Event "*** Titled Tuesday 3|2 Blitz"]
[Site "Chess.com"]
[Date "2015.12.01"]
[Round "2"]
[White "Ar4uha"]
[Black "jefferyx"]
[Result "0-1"]
[WhiteElo "2357"]
[BlackElo "2575"]
[TimeControl "180+2"]
[EndTime "17:20:43 PST"]
[Termination "jefferyx won by resignation"]

1. e4 {[%clk 0:02:39.6]} 1... a6 {[%clk 0:03:00.7]} 2. d4 {[%clk 0:02:36]} 2...
b5 {[%clk 0:03:01.7]} 3. Nf3 {[%clk 0:02:37.7]} 3... Bb7 {[%clk 0:03:02.7]} 4.
Bd3 {[%clk 0:02:39.3]} 4... e6 {[%clk 0:03:04.1]} 5. O-O {[%clk 0:02:40.2]} 5...
Nf6 {[%clk 0:03:05.5]} 6. Qe2 {[%clk 0:02:40.2]} 6... d5 {[%clk 0:03:06.5]} 7.
e5 {[%clk 0:02:40.5]} 7... Nfd7 {[%clk 0:03:07.7]} 8. c3 {[%clk 0:02:40.4]} 8...
c5 {[%clk 0:03:08.7]} 9. Bf4 {[%clk 0:02:41.4]} 9... Nc6 {[%clk 0:03:09.6]} 10.
a3 {[%clk 0:02:41.5]} 10... Be7 {[%clk 0:03:10.7]} 11. Nbd2 {[%clk 0:02:42.2]}
11... g5 {[%clk 0:03:08.5]} 12. Be3 {[%clk 0:02:41.1]} 12... h5 {[%clk 0:03:07]}
13. Ne1 {[%clk 0:02:41.5]} 13... Qb6 {[%clk 0:03:07.7]} 14. dxc5 {[%clk
0:02:31.2]} 14... Bxc5 {[%clk 0:03:04.6]} 15. Bxg5 {[%clk 0:02:29.8]} 15...
Ncxe5 {[%clk 0:03:05.5]} 16. b4 {[%clk 0:02:11.6]} 16... Bd6 {[%clk 0:03:00.2]}
17. Be3 {[%clk 0:02:11.9]} 17... Qc7 {[%clk 0:03:00.7]} 18. h3 {[%clk 0:02:08]}
18... Qxc3 {[%clk 0:02:51.7]} 19. Ndf3 {[%clk 0:02:07.4]} 19... Qxa1 {[%clk
0:02:06.7]} 20. Bd4 {[%clk 0:02:03.9]} 20... Qc1 {[%clk 0:02:07.3]} 21. Nxe5
{[%clk 0:02:01.8]} 21... Nxe5 {[%clk 0:01:40.2]} 22. Bxe5 {[%clk 0:01:44.9]}
22... Bxe5 {[%clk 0:01:14]} 23. Qxe5 {[%clk 0:01:44.9]} 23... Rg8 {[%clk
0:01:15.3]} 24. Nf3 {[%clk 0:01:45.2]} 24... Qxa3 {[%clk 0:01:11.7]} 25. Qc7
{[%clk 0:01:36.4]} 25... Qxd3 {[%clk 0:01:01.4]} 26. Qxb7 {[%clk 0:01:33.3]}
26... Rd8 {[%clk 0:00:59.7]} 27. Ne5 {[%clk 0:01:31.4]} 27... Qf5 {[%clk
0:00:54.4]} 28. f4 {[%clk 0:01:27.8]} 28... Rg7 {[%clk 0:00:46.1]} 29. Rf3
{[%clk 0:01:16.6]} 29... Qc2 {[%clk 0:00:39]} 30. Rg3 {[%clk 0:01:06.9]} 30...
Qc1+ {[%clk 0:00:39.9]} 31. Kh2 {[%clk 0:00:15.8]} 31... Qxf4 {[%clk 0:00:41.8]}
32. Qc6+ {[%clk 0:00:17.1]} 32... Kf8 {[%clk 0:00:42.2]} 33. Nd7+ {[%clk
0:00:13]} 33... Rxd7 {[%clk 0:00:37.8]} 34. Qc8+ {[%clk 0:00:14]} 34... Ke7
{[%clk 0:00:39.2]} 35. Qc5+ {[%clk 0:00:14.2]} 35... Kf6 {[%clk 0:00:36.6]} 36.
Qd4+ {[%clk 0:00:13.8]} 36... Qxd4 {[%clk 0:00:36.9]} 0-1

[Event "*** Titled Tuesday 3|2 Blitz"]
[Site "Chess.com"]
[Date "2015.12.01"]
[Round "2"]
[White "ItalianMachine"]
[Black "Penguininja"]
[Result "1-0"]
[WhiteElo "2230"]
[BlackElo "2185"]
[TimeControl "180+2"]
[EndTime "17:20:44 PST"]
[Termination "ItalianMachine won by checkmate"]

1. e4 {[%clk 0:03:01.9]} 1... e5 {[%clk 0:02:50.2]} 2. Nf3 {[%clk 0:02:58.7]}
2... Nc6 {[%clk 0:02:48.9]} 3. Bb5 {[%clk 0:03:00.2]} 3... f5 {[%clk 0:02:48.1]}
4. d3 {[%clk 0:03:00.8]} 4... fxe4 {[%clk 0:02:49.3]} 5. dxe4 {[%clk 0:03:01.7]}
5... Nf6 {[%clk 0:02:50.3]} 6. Nbd2 {[%clk 0:03:01.5]} 6... Bc5 {[%clk
0:02:50.3]} 7. O-O {[%clk 0:03:02.7]} 7... d6 {[%clk 0:02:50.6]} 8. h3 {[%clk
0:03:00.7]} 8... O-O {[%clk 0:02:50.3]} 9. c3 {[%clk 0:03:01.2]} 9... Be6 {[%clk
0:02:45.3]} 10. Ng5 {[%clk 0:02:55]} 10... Bf7 {[%clk 0:02:22.7]} 11. Nxf7
{[%clk 0:02:52.1]} 11... Kxf7 {[%clk 0:02:12.6]} 12. Bc4+ {[%clk 0:02:01.8]}
12... Ke7 {[%clk 0:01:57.4]} 13. Nf3 {[%clk 0:01:34.2]} 13... Na5 {[%clk
0:01:49.4]} 14. Bd3 {[%clk 0:01:30.4]} 14... Bb6 {[%clk 0:01:41.6]} 15. b4
{[%clk 0:01:28.8]} 15... Nc6 {[%clk 0:01:42.5]} 16. Bc4 {[%clk 0:01:30.4]} 16...
Qd7 {[%clk 0:01:41.8]} 17. a4 {[%clk 0:01:18.9]} 17... a6 {[%clk 0:01:38.1]} 18.
Qd3 {[%clk 0:01:04.1]} 18... Nd8 {[%clk 0:01:14.7]} 19. Nh4 {[%clk 0:00:58.2]}
19... Ne6 {[%clk 0:01:10.7]} 20. Nf5+ {[%clk 0:00:52.9]} 20... Kd8 {[%clk
0:01:06]} 21. Bxe6 {[%clk 0:00:48.1]} 21... Qxe6 {[%clk 0:01:06.6]} 22. Nxg7
{[%clk 0:00:49.7]} 22... Qf7 {[%clk 0:00:59.9]} 23. Nf5 {[%clk 0:00:50.7]} 23...
Nxe4 {[%clk 0:00:49.5]} 24. Qxe4 {[%clk 0:00:35]} 24... Qxf5 {[%clk 0:00:49]}
25. Qxb7 {[%clk 0:00:34.5]} 25... Kd7 {[%clk 0:00:41.5]} 26. Be3 {[%clk
0:00:32.6]} 26... Ra7 {[%clk 0:00:28.2]} 27. Qd5 {[%clk 0:00:31.4]} 27... Rb8
{[%clk 0:00:21.4]} 28. a5 {[%clk 0:00:29.6]} 28... c6 {[%clk 0:00:18.6]} 29. Qb3
{[%clk 0:00:26.4]} 29... Bxe3 {[%clk 0:00:16.4]} 30. fxe3 {[%clk 0:00:27.6]}
30... Qd3 {[%clk 0:00:12.4]} 31. Rf7+ {[%clk 0:00:27.3]} 31... Kc8 {[%clk
0:00:09.9]} 32. Qe6+ {[%clk 0:00:26.3]} 32... Kd8 {[%clk 0:00:09.4]} 33. Rf8+
{[%clk 0:00:26.4]} 33... Kc7 {[%clk 0:00:10.4]} 34. Qe7# {[%clk 0:00:27.4]} 1-0

[Event "*** Titled Tuesday 3|2 Blitz"]
[Site "Chess.com"]
[Date "2015.12.01"]
[Round "2"]
[White "gumersindo"]
[Black "Viaje"]
[Result "1-0"]
[WhiteElo "2207"]
[BlackElo "2183"]
[TimeControl "180+2"]
[EndTime "17:21:20 PST"]
[Termination "gumersindo won by checkmate"]

1. d4 {[%clk 0:03:01.9]} 1... Nf6 {[%clk 0:02:59.8]} 2. c4 {[%clk 0:03:01.3]}
2... c5 {[%clk 0:03:01.2]} 3. d5 {[%clk 0:03:02.1]} 3... b5 {[%clk 0:03:02.3]}
4. cxb5 {[%clk 0:03:03.5]} 4... a6 {[%clk 0:03:03.8]} 5. bxa6 {[%clk 0:03:05.1]}
5... g6 {[%clk 0:03:04.9]} 6. Nc3 {[%clk 0:03:06.4]} 6... Bg7 {[%clk 0:03:06.5]}
7. e4 {[%clk 0:03:07.1]} 7... O-O {[%clk 0:03:07.5]} 8. Nf3 {[%clk 0:03:08.5]}
8... Qa5 {[%clk 0:03:07.9]} 9. Bd2 {[%clk 0:03:07.8]} 9... Bxa6 {[%clk
0:03:08.8]} 10. Bxa6 {[%clk 0:03:06.6]} 10... Qxa6 {[%clk 0:03:10.7]} 11. Qe2
{[%clk 0:02:50.4]} 11... e6 {[%clk 0:03:10.8]} 12. dxe6 {[%clk 0:02:46.4]} 12...
fxe6 {[%clk 0:03:11.4]} 13. Qxa6 {[%clk 0:02:47.8]} 13... Nxa6 {[%clk
0:03:12.5]} 14. O-O {[%clk 0:02:49.2]} 14... Nb4 {[%clk 0:03:13.3]} 15. a3
{[%clk 0:02:34]} 15... Nd3 {[%clk 0:03:12.7]} 16. Rab1 {[%clk 0:02:29.1]} 16...
Rfb8 {[%clk 0:03:09.1]} 17. b4 {[%clk 0:02:29.1]} 17... cxb4 {[%clk 0:03:08.3]}
18. axb4 {[%clk 0:02:27.4]} 18... Nxb4 {[%clk 0:03:08.7]} 19. Bf4 {[%clk
0:02:19.4]} 19... Rc8 {[%clk 0:03:01]} 20. Nb5 {[%clk 0:02:11.3]} 20... Nd3
{[%clk 0:02:54.2]} 21. Be3 {[%clk 0:02:03.4]} 21... Nxe4 {[%clk 0:02:46.3]} 22.
Rfd1 {[%clk 0:02:03.2]} 22... Ndc5 {[%clk 0:02:43.6]} 23. Nd6 {[%clk 0:01:57.1]}
23... Nxd6 {[%clk 0:02:40.7]} 24. Rxd6 {[%clk 0:01:57.2]} 24... Ra7 {[%clk
0:01:43.6]} 25. g3 {[%clk 0:01:54.3]} 25... Bf8 {[%clk 0:01:41.3]} 26. Rdd1
{[%clk 0:01:49.7]} 26... d6 {[%clk 0:01:38.9]} 27. Rbc1 {[%clk 0:01:40.5]} 27...
Rac7 {[%clk 0:01:34.9]} 28. Kg2 {[%clk 0:01:35.8]} 28... h6 {[%clk 0:01:34.3]}
29. h4 {[%clk 0:01:35.6]} 29... Kf7 {[%clk 0:01:35]} 30. h5 {[%clk 0:01:34.3]}
30... g5 {[%clk 0:01:35.3]} 31. Nh2 {[%clk 0:01:34.3]} 31... Ne4 {[%clk
0:01:31]} 32. Ra1 {[%clk 0:01:32.2]} 32... Rc2 {[%clk 0:01:29.7]} 33. Ra7+
{[%clk 0:01:30.4]} 33... R8c7 {[%clk 0:01:31.2]} 34. Ra8 {[%clk 0:01:30.8]}
34... Nf6 {[%clk 0:01:28.8]} 35. g4 {[%clk 0:01:29.6]} 35... R7c3 {[%clk
0:01:25.4]} 36. Bd4 {[%clk 0:01:26.6]} 36... Rc7 {[%clk 0:01:22.9]} 37. Rxf8+
{[%clk 0:01:25.7]} 37... Kxf8 {[%clk 0:01:22.7]} 38. Bxf6 {[%clk 0:01:27.3]}
38... d5 {[%clk 0:01:23.3]} 39. Be5 {[%clk 0:01:25.5]} 39... Rb7 {[%clk
0:01:23.7]} 40. Bg3 {[%clk 0:01:23.7]} 40... Kf7 {[%clk 0:01:23.8]} 41. Nf3
{[%clk 0:01:23.9]} 41... Rbb2 {[%clk 0:01:23.5]} 42. Ne5+ {[%clk 0:01:22.8]}
42... Kf6 {[%clk 0:01:23.3]} 43. Nd3 {[%clk 0:01:22.5]} 43... Ra2 {[%clk
0:01:21]} 44. Nb4 {[%clk 0:01:22.3]} 44... Rab2 {[%clk 0:01:19.6]} 45. Nd3
{[%clk 0:01:21.3]} 45... Rb3 {[%clk 0:01:17.9]} 46. Be5+ {[%clk 0:01:14.5]}
46... Kf7 {[%clk 0:01:16.8]} 47. Ne1 {[%clk 0:01:14.1]} 47... Re2 {[%clk
0:01:15.9]} 48. Bg3 {[%clk 0:01:11.7]} 48... Rb4 {[%clk 0:01:13.4]} 49. Nd3
{[%clk 0:01:09.5]} 49... Rb3 {[%clk 0:01:06.4]} 50. Ne5+ {[%clk 0:01:07.9]}
50... Kf6 {[%clk 0:01:07.2]} 51. Nf3 {[%clk 0:01:08.6]} 51... Rb4 {[%clk
0:01:05]} 52. Rc1 {[%clk 0:01:09.2]} 52... Rxg4 {[%clk 0:01:03.8]} 53. Rc6
{[%clk 0:01:08.3]} 53... Rge4 {[%clk 0:01:00.6]} 54. Rc8 {[%clk 0:01:06]} 54...
g4 {[%clk 0:01:00.5]} 55. Nh2 {[%clk 0:01:03.4]} 55... Kg5 {[%clk 0:01:00.9]}
56. Rg8+ {[%clk 0:00:57.2]} 56... Kxh5 {[%clk 0:01:01.5]} 57. Nf1 {[%clk
0:00:58.1]} 57... d4 {[%clk 0:01:01.3]} 58. Bd6 {[%clk 0:00:58.9]} 58... d3
{[%clk 0:00:54.9]} 59. Ng3+ {[%clk 0:00:59.5]} 59... Kh4 {[%clk 0:00:53.1]} 60.
Be7# {[%clk 0:01:01.1]} 1-0